Cogmind - Beta 13 @@@ ROGUE MODE // 2024.04.02 @ 21:01:35 Player: zylond Result: Destroyed by G-34 Mercenary with Small Laser Performance ------------- Evolutions (1) 500 Regions Visited (2) 400 Robots Destroyed (44) 220 Value Destroyed (1068) 1068 Prototype IDs (2) 40 Alien Tech Used (0) 0 Bonus (0) 0 TOTAL SCORE: 2228 Bonus ------- None Cogmind --------- Core Integrity 0/400 Matter 300/300 Energy 100/100 System Corruption 0% Temperature Cool (6) Movement Walking (400) Ox4 Location -9/Materials Parts ------- > --- POWER (2) -------- (None) > --- PROPULSION (2) --- Aluminum Leg > --- UTILITY (3) ------ High-capacity Storage Unit Visual Processing Unit Field Recycling Unit > --- WEAPON (2) ------- (None) > --- INVENTORY (20) --- Ion Engine Heat Sink Small Matter Pod (50) Large Matter Pod (150) Large Matter Pod (150) Seismic Detector Propulsion Shielding Light Armor Plating Peak State ------------ > --- POWER ------------ Ion Engine Improved Ion Engine > --- PROPULSION ------- Aluminum Leg Aluminum Leg > --- UTILITY ---------- High-capacity Storage Unit Visual Processing Unit Field Recycling Unit > --- WEAPON ----------- Light EM Pulse Cannon Improved Light Cannon > --- INVENTORY -------- Heat Sink Small Matter Pod Large Matter Pod Large Matter Pod Seismic Detector Propulsion Shielding Light Armor Plating Small Laser Heavy Assault Rifle [Rating: 15] Favorites ----------- Power Ion Engine Engine Ion Engine Propulsion Wheel Leg Aluminum Leg Wheel Wheel Hover Unit Hover Unit Flight Unit Flight Unit Utility High-capacity Storage Unit Device Field Recycling Unit Storage High-capacity Storage Unit Processor Visual Processing Unit Protection Light Armor Plating Weapon Improved Light Cannon Energy Gun Heavy EM Pulse Gun Energy Cannon Light EM Pulse Cannon Ballistic Gun Assault Rifle Ballistic Cannon Improved Light Cannon Launcher Grenade Launcher Build | -11 -10 -9 ------- Run | Yrd Mat Mat Slots Evolved 2 | . . 2 Power 1 | . . 1 Propulsion . | . . . Utility 1 | . . 1 Weapon . | . . . Parts Attached 58 | 15 23 20 Power 10 | 1 5 4 Engine 10 | 1 5 4 Core . | . . . Reactor . | . . . Propulsion 18 | 9 5 4 Treads . | . . . Leg 9 | 4 2 3 Wheel 7 | 5 2 . Hover 1 | . . 1 Flight 1 | . 1 . Utility 14 | 2 5 7 Device 5 | 1 1 3 Storage 6 | 1 3 2 Processor 2 | . . 2 Hackware . | . . . Protection 1 | . 1 . Artifact . | . . . Weapon 16 | 3 8 5 Energy Gun 5 | . 3 2 Energy Cannon 1 | . . 1 Ballistic Gun 7 | 3 2 2 Ballistic Cannon 2 | . 2 . Launcher 1 | . 1 . Special Weapon . | . . . Impact Weapon . | . . . Slashing Weapon . | . . . Piercing Weapon . | . . . Special Melee Weapon . | . . . Unidentified Prototypes . | . . . Parts Lost 15 | . 2 13 Power 4 | . . 4 Propulsion 5 | . 1 4 Utility . | . . . Weapon 6 | . 1 5 Highest Loss Streak 6 | . 2 6 To Critical Strikes . | . . . Average Slot Usage (%) 91 | . 95 88 Engine 15 | . 14 16 Leg 8 | . . 16 Wheel 10 | . 18 1 Flight 3 | . 7 . Device 6 | . 6 6 Storage 12 | . 14 11 Processor 6 | . . 14 Protection 4 | . 7 . Energy Gun 6 | . 8 3 Energy Cannon 1 | . . 3 Ballistic Gun 6 | . 10 3 Ballistic Cannon 6 | . 4 9 Launcher 1 | . 1 . Naked Turns . | . . . Heaviest Build 68 | 9 54 68 Greatest Support 20 | 20 20 20 Greatest Overweight (x) 17 | . 7 17 Average Overweight (x) 2 | . 2 3 Largest Inventory Capacity 20 | 5 20 20 Average Capacity 16 | 5 14 20 Most Carried 11 | 5 11 10 Average Carried 7 | 2 7 8 Final Capacity 20 | 5 20 20 Final Carried 9 | 4 9 8 Class Distribution -------------------- 100% | Mutant Dominant Class ---------------- Mutant | -10/Materials Mutant | -9/Materials Resources | -11 -10 -9 ----------- Run | Yrd Mat Mat Matter Collected 1551 | 381 684 486 Remotely . | . . . Salvage Created 1187 | 73 494 620 Parts 83 | 6 26 51 Haulers Intercepted . | . . . Recyclers Shooed 1 | . 1 . Parts Field Recycled 3 | . . 3 Retrieved Matter 60 | . . 60 Parts Self-Destructed . | . . . Prevented . | . . . Kills | -11 -10 -9 ------- Run | Yrd Mat Mat Combat Hostiles Destroyed 32 | 1 13 18 Guns 12 | 1 6 5 Cannons 14 | . 2 12 AOE 5 | . 4 1 Classes Destroyed 8 | 3 2 3 Worker 4 | 1 2 1 Tunneler 3 | 1 1 1 Recycler 1 | . . 1 Operator 1 | . . 1 Watcher 3 | . 1 2 Swarmer 9 | . 2 7 Grunt 21 | 1 11 9 Sentry 2 | . . 2 Best Kill Streak 5 | 2 3 5 Combat Bots Only 4 | 1 2 4 Max Kills in Single Turn 4 | 1 2 4 Gunslinging . | . . . Exploded 1 | . 1 1 Melee . | . . . Uniques/NPCs Destroyed . | . . . Combat | -11 -10 -9 -------- Run | Yrd Mat Mat Hostile Shots Fired 247 | 2 79 166 Missed 59 | . 20 39 Damage Taken 2180 | 23 608 1549 Core 543 | . 141 402 Absorbed by Shields . | . . . Regen/Repaired (Parts) 47 | . 12 35 Core Remaining (%) 71 | 100 43 . Volleys Fired 123 | 5 54 64 Largest 2 | 2 2 2 Hottest 95 | 40 84 95 Shots Fired 207 | 9 93 105 Gun 122 | 9 72 41 Cannon 79 | . 15 64 Launcher 6 | . 6 . Special . | . . . Kinetic 141 | 9 58 74 Thermal 17 | . . 17 Explosive 6 | . 6 . Electromagnetic 43 | . 29 14 Robot Hit Streak 11 | 5 11 7 Robot Miss Streak 5 | 1 5 3 Penetration Max . | . . . Secondary Targets . | . . . Shots Hit Robots 111 | 5 45 61 Core Hits 57 | 4 23 30 Critical Kills . | . . . Critical Parts Destroyed . | . . . Critical Strikes 3 | . 1 2 Blast 3 | . 1 2 Melee Attacks . | . . . Impact . | . . . Slashing . | . . . Piercing . | . . . Sneak Attacks . | . . . Combat Hostiles . | . . . Follow-up Attacks . | . . . Damage Inflicted 2494 | 61 1084 1349 Guns 901 | 61 524 316 Cannons 878 | . 129 749 Explosions 705 | . 426 279 Melee . | . . . Ramming 10 | . 5 5 Kinetic 1313 | 61 421 831 Thermal 244 | . 100 144 Explosive 561 | . 326 235 Electromagnetic 366 | . 232 134 Impact . | . . . Slashing . | . . . Piercing . | . . . Highest Corruption . | . . . Average Corruption . | . . . Corruption Purged . | . . . Corruption Blocked . | . . . Overload Shots . | . . . Overflow Damage 113 | . 18 95 Projectiles 11 | . 8 3 Explosions 102 | . 10 92 Melee . | . . . Knockbacks 4 | . . 4 Impact . | . . . Kinetic 4 | . . 4 Secondary . | . . . Self-Inflicted Damage 131 | . 2 129 Shots 2 | . . 2 Rammed 2 | . 2 . Targets Rammed 4 | . 2 2 Kicked 2 | . . 2 Crushed . | . . . Highest Temperature 294 | . 132 294 Average Temperature 51 | . 46 55 Received Heat Transfer 852 | 12 267 573 Effects 1 | . . 1 Interference 1 | . . 1 Siege Activations . | . . . Robots Corrupted 1 | . 1 . Combat Hostiles 1 | . 1 . Parts Fried . | . . . Impact Corruptions . | . . . Robots Melted . | . . . Combat Hostiles . | . . . Parts Melted . | . . . Heat Transferred 475 | . 150 325 Parts Sabotaged . | . . . Parts Stolen . | . . . Parts Stripped . | . . . Power Chain Reactions 3 | . 2 1 Alert | -11 -10 -9 ------- Run | Yrd Mat Mat Peak Influence 282 | 30 208 282 Initial 30 | . 19 30 Average 98 | 6 63 145 Maximum Alert Level 1 | . 1 1 Low Security (%) 86 | 100 96 73 Level 1 13 | . 3 26 Level 2 . | . . . Level 3 . | . . . Level 4 . | . . . Level 5 . | . . . High Security . | . . . Max Security . | . . . Squads Dispatched 6 | . 3 3 Investigation 3 | . 2 1 Extermination . | . . . Reinforcement 3 | . 1 2 Assault . | . . . Garrison . | . . . Intercept . | . . . Searches Triggered . | . . . Construction Impeded . | . . . Haulers Reinforced . | . . . Active Scanning Responses . | . . . Cargo Convoy Interrupts . | . . . Stealth | -11 -10 -9 --------- Run | Yrd Mat Mat Distress Signals 1 | . . 1 Communications Jammed . | . . . Distress Signals . | . . . Times Spotted 54 | 1 23 30 Peak Tracking Total 5 | 1 5 5 Tactical Retreats 6 | . 1 5 Traps | -11 -10 -9 ------- Run | Yrd Mat Mat Traps Triggered 1 | . 1 . Indirectly . | . . . Trap Hack Attempts . | . . . Triggered . | . . . Disarmed . | . . . Reprogrammed . | . . . Reused . | . . . Traps Extracted . | . . . Installed . | . . . Triggered . | . . . Machines | -11 -10 -9 ---------- Run | Yrd Mat Mat Machines Disabled 4 | . . 4 Max in Single Turn 3 | . . 3 Machines Repaired . | . . . Machines Dismantled . | . . . Machines Sabotaged . | . . . Overloaded Fab Kills . | . . . Hacking | -11 -10 -9 --------- Run | Yrd Mat Mat Machines Accessed 8 | . 5 3 Terminals 4 | . 3 1 Fabricators . | . . . Repair Stations 2 | . 1 1 Recycling Units 2 | . 1 1 Scanalyzers . | . . . Garrison Access . | . . . Total Hacks 35 | . 24 11 Successful 22 | . 13 9 Failed 13 | . 11 2 Catastrophic 1 | . 1 . Database Lockouts . | . . . Manual . | . . . Terminals 25 | . 17 8 Fabricators . | . . . Repair Stations 6 | . 4 2 Recycling Units 4 | . 3 1 Scanalyzers . | . . . Garrison Access . | . . . Terminal Hacks 15 | . 9 6 Record 4 | . 3 1 Prototype ID Bank 1 | . 1 . Alert Level 6 | . 4 2 Unreport Threat 1 | . 1 . Maintenance Status 1 | . . 1 Hauler Manifests 1 | . . 1 Zone Layout 1 | . . 1 Fabricator Hacks . | . . . Repair Station Hacks 4 | . 2 2 Scan Component 2 | . 1 1 Repair 2 | . 1 1 Recycling Unit Hacks 3 | . 2 1 Recycle Component 1 | . 1 . Report Inventory 2 | . 1 1 Scanalyzer . | . . . Garrison Access Hacks . | . . . Unauthorized Hacks . | . . . Terminals . | . . . Fabricators . | . . . Repair Stations . | . . . Recycling Units . | . . . Scanalyzers . | . . . Garrison Access . | . . . Data Cores Recovered . | . . . Used . | . . . Hacking Detections 7 | . 5 2 Full Trace Events 6 | . 5 1 Feedback Events . | . . . Feedback Blocked . | . . . Robot Schematics Acquired . | . . . Robots Built . | . . . Authchips . | . . . Time . | . . . Total Robot Build Rating . | . . . Part Schematics Acquired . | . . . Parts Built . | . . . Authchips . | . . . Time . | . . . Total Part Build Rating . | . . . Parts Repaired 2 | . 1 1 Time 58 | . 26 32 Parts Recycled 1 | . 1 . Recycled Matter . | . . . Retrieved Matter . | . . . Retrieved Components . | . . . Parts Scanalyzed . | . . . Part Schematics Acquired . | . . . Parts Damaged . | . . . Bothacking | -11 -10 -9 ------------ Run | Yrd Mat Mat Used RIF Installer . | . . . Robots Hacked . | . . . Non-combat . | . . . Combat . | . . . Robot Hacks Applied . | . . . Relay Couplers Released . | . . . Fabnet Peak Effective % . | . . . Robots Rewired . | . . . Allies Hacked . | . . . Hacks Repelled . | . . . Allies | -11 -10 -9 -------- Run | Yrd Mat Mat Total Allies . | . . . Largest Group . | . . . Highest-Rated Group . | . . . Highest-Rated Ally . | . . . Total Orders . | . . . Ally Attacks . | . . . Total Damage . | . . . Kills . | . . . Allies Corrupted . | . . . Allies Melted . | . . . Intel | -11 -10 -9 ------- Run | Yrd Mat Mat Robot Analysis Total . | . . . Derelict Logs Recovered . | . . . Drone Launches . | . . . Drone Recoveries . | . . . Exploration | -11 -10 -9 ------------- Run | Yrd Mat Mat Turns Passed 2864 | 110 1439 1315 Spaces Moved 1362 | 89 894 379 Core 29 | 27 . 2 Treads . | . . . Legs 304 | . 10 294 Wheels 995 | 62 857 76 Hover 7 | . . 7 Flight 27 | . 27 . Fastest Speed 50 | 50 80 155 Average Speed 176 | 70 137 291 Slowest Speed 900 | 80 605 900 Overloaded Moves . | . . . Propulsion Burnouts . | . . . Robots Hopped . | . . . Cave-ins Triggered . | . . . Exploration Rate (%) 42 | 9 87 30 Regions Visited 2 Branch Regions . Pre-discovered Areas . | . . . Known Exits Taken . | . . . Unknown Exits Taken 2 | 1 1 . Scrap Searched . | . . . Spaces Dug . | . . . Terrain Destroyed 47 | . 35 12 Melee . | . . . Projectile 6 | . 1 5 AOE 41 | . 34 7 Terrain Rammed . | . . . Walls Destroyed . | . . . Machines Disabled . | . . . Actions | -11 -10 -9 --------- Run | Yrd Mat Mat Total 1605 | 124 1003 478 Wait 1 | . 1 . Move 1360 | 88 893 379 Hop . | . . . Pick Up 45 | 13 20 12 Fast Attach . | . . . Attach 27 | 8 6 13 Detach 3 | 1 1 1 Swap 31 | 7 17 7 Drop 11 | 2 9 . Fire 123 | 5 54 64 Melee . | . . . Ram 2 | . 2 . Kick 2 | . . 2 Crush . | . . . Escape Stasis . | . . . Rewire . | . . . Trap . | . . . Miscellaneous . | . . . Route ------- -11/Scrapyard -10/Materials (discovered 3 exits: *Mat x2 / [*Min]) -9/Materials History --------- Turn | Location | Event 2 | -11/Scrapyard | Met Revision 17 81 | -11/Scrapyard | Discovered new exit (range 8) 111 | -11/Scrapyard | Entered Materials 265 | -10/Materials | Repaired Wheel 308 | -10/Materials | Discovered new exit (range 14) 359 | -10/Materials | Build established: Mutant 436 | -10/Materials | Discovered new exit (range 7) 660 | -10/Materials | Discovered new exit (range 12) 1355 | -10/Materials | Core integrity fell below 50% 1550 | -10/Materials | Entered another Materials area 1550 | -9/Materials | Evolved 2 slots: Power x1, Utility x1 2213 | -9/Materials | Repaired Hvy. Assault Rifle 2676 | -9/Materials | Core integrity fell below 50% 2703 | -9/Materials | Core integrity fell below 20% 2722 | -9/Materials | Lost 6 parts (2p2n2w) 2865 | -9/Materials | Destroyed by G-34 Mercenary with Small Laser Last Messages --------------- The unstable cave ceiling collapses. Lgt. EM Pulse Cannon destroyed. R-06 Scavenger collects Lgt. Assault Rifle. K-01 Serf collects debris. R-06 Scavenger collects Lgt. Ion Engine. K-01 Serf collects debris. G-34 Mercenary destroyed. K-01 Serf collects debris. ALERT: Hostiles spotted, dispatching reinforcements to Terminal M005. G-34 Mercenary destroyed. K-01 Serf collects debris. Acquired 12 matter. K-01 Serf collects debris. G-34 Mercenary destroyed. Acquired 50 matter. Hvy. Assault Rifle destroyed. Sml. Laser destroyed. Acquired Ion Engine. [Achievement: First Step to Greatness] Map ----- +----------------------------------------------------+ | #?###########????????????? | | ##+#### #????????????? | | + """ #??????????#?? | | #### "T" #######??? #?? | | #??# # #??? ??? | | #??# """ """ + #?? #??? | | ## #??# """ """ # ###%#??? | | # #??# """ """ # [%*#??? | | # #??# # !*#??? | | # #??#######+### #??? | | # #???????# =! #??? | | # #?####### = ### #??? | | # #?# # % ""#?#??? | | # ??# [[ T"#????? | | ## ??# [[ ""#????? | | ?? ??# [ # ###+##?? | | ?? ??# # # | | ?? ??# # """# | | ?? ??# # # """# | | ?? ? + ! # # """# | | ?? ? # = ?# "" ! # # | | ?????# ??# """ # """# | | ?????# ???# """ ! # """# | | ?????# ????# """ # """# | | ??????###/## # = # | | ??? #g @"""# | | ??? + = """# | | ??? # """# | | ?????####+####### # # | | ????????????????## ######### | | ?????????????????# #???????? | | ?????????????????# #???????? | | ?????????????????# #???????? | | ?????????????????# #???????? | | ?????????????????# #???????? | | ?????????????????# #???????? | | ?????????????????# ????????? | | ?????????????????# ????????? | | ?????????????????# ????????? | | ?????????????????# ????????? | | ?????????????????# ????????? | | ?????????????????+ ????????? | | ?????????????????# ????????? | | ?????????????????? ????????? | | ?????????????????????????????? | | ?????????????????????????????? | | ?????????????????????????????? | | ?????????????????????????????? | | ?????????????????????????????? | | ?????????????????????????????? | +----------------------------------------------------+ Best States ------------- Heat Dissipation 28 Energy Generation 17 Energy Capacity 415 Matter Stores 440 Matter Capacity 450 Sight Range 18 Terrain Scan Range 16 Terrain Scan Density 10 Armor Coverage 150 Evasion (%) 50 Targeting Accuracy 5 Item Schematics ----------------- None Robot Schematics ------------------ None Fabricated ------------ Nothing Alien Tech Used ----------------- None Achievements -------------- Crack Shot Everything Is Under Control First Step to Greatness One Hack Too Far Part-time Mechanic Power Corrupts Shopping List Storm Trooper Uninvited Guest Challenges ------------ None Game ------ Seed MiniLatentBank Manual? 0 Play Time 00:46:28 Cumulative 0.7 hours Start 2024.03.31 @ 19:49:50 End 2024.04.02 @ 21:01:35 Sessions 5 Manual Loads 0 Difficulty Rogue Special Mode None Game No. 1 Rogue 1 Adventurer 0 Explorer 0 Win Type - Total 0 Types 0/0/0/0/0/0/0/0/0 Lore% 0 Gallery% 2 Achievement% 3 Wizard Run 0 Options --------- Layout 1 ASCII 0 Keyboard 0 Movement Mouse Keybinds 0 Fullscreen 2 Font 24/Smallcaps Map View 50x35 Zoom Use 0% Tactical HUD 0 Map Filters NONE Filters NONE Steam SD RUN: a1b934f1-54b4-41d5-8500-9e2b2741778a